bitfinex-derivatives/quotes_ETHF0:USTF0_20251213
["timestamp","ask_amount","ask_price","bid_price","bid_amount"]
[1765639595999,7.89904457,3114.7,3114.6,20.29639572]
[1765639596300,15.80714457,3114.7,3114.6,20.29639572]
[1765639597199,15.80714457,3114.7,3114.6,24.44819572]
[1765639597693,7.91214457,3114.7,3114.6,25.65117144]
[1765639598500,0.00404457,3114.7,3114.6,25.65117144]
[1765639600097,0.00404457,3114.7,3114.6,25.64808402]
[1765639602093,1.26912059,3114.8,3114.7,8.33721]
[1765639602398,1.26912059,3114.8,3114.7,14.93775561]
[1765639602599,6.00111595,3115.0,3114.9,8.3372]
[1765639602800,6.00111595,3115.0,3114.9,25.64706402]
[1765639603104,6.00370978,3115.0,3114.9,25.64706402]
[1765639603401,6.00370978,3115.0,3114.9,66.44706402]
[1765639603796,0.00740978,3115.0,3114.9,66.44706402]
[1765639609906,0.00740978,3115.0,3114.9,66.44675764]
[1765639614813,10.26370978,3115.0,3114.9,62.29495764]
[1765639615410,6.39210978,3115.0,3114.9,62.29495764]
[1765639616610,2.36870978,3115.0,3114.9,62.29495764]
[1765639617011,0.00740978,3115.0,3114.9,62.29495764]
[1765639618110,5.9858,3115.2,3115.1,8.76709]
[1765639618307,5.9858,3115.2,3115.1,11.97489]
[1765639619012,5.98860183,3115.2,3115.1,11.97489]
[1765639626312,5.98860183,3115.2,3115.1,26.87789]
[1765639626914,0.00280183,3115.2,3115.1,26.87789]
[1765639627306,6.8042,3115.4,3115.3,8.76708]
[1765639627507,6.8042,3115.4,3115.3,11.16963764]
[1765639627707,6.8042,3115.4,3115.3,9.96835882]
[1765639628311,6.80781756,3115.4,3115.3,9.96835882]
[1765639629019,6.80781756,3115.4,3115.3,14.67166637]
[1765639629411,0.00481595,3115.5,3115.4,8.76708]
[1765639629717,0.00481595,3115.5,3115.4,27.18252828]
[1765639630117,10.74921595,3115.5,3115.4,23.67008]
[1765639630308,6.59241595,3115.5,3115.4,23.67008]
[1765639630505,6.20428386,3115.5,3115.4,23.67008]
[1765639630710,6.20428386,3115.5,3115.4,27.21028145]
[1765639630910,6.20428386,3115.5,3115.4,28.41156027]
[1765639631106,9.9176,3116.0,3115.9,8.76705]
[1765639631310,2.5527,3116.0,3115.9,24.87032882]
[1765639631506,11.8214,3116.0,3115.9,24.87032882]
[1765639632111,11.82399207,3116.0,3115.9,24.87301561]
[1765639632511,9.27129207,3116.0,3115.9,24.87301561]
[1765639632820,9.27129207,3116.0,3115.9,65.67301561]
[1765639634116,9.27129207,3116.0,3115.9,68.88081561]
[1765639635720,9.27129207,3116.0,3115.9,68.87997097]
[1765639636814,0.00481595,3116.3,3116.2,8.76703]
[1765639637015,0.00481595,3116.3,3116.2,26.06889836]
[1765639637324,0.00481595,3116.3,3116.2,29.65725663]
[1765639637710,6.77411595,3116.3,3116.2,29.65725663]
[1765639637919,6.77817721,3116.3,3116.2,29.65725663]
[1765639638116,15.09207721,3116.3,3116.2,4.43653]
[1765639638322,15.09207721,3116.3,3116.2,20.53696418]
[1765639638816,21.09207721,3116.3,3116.2,0.16043]
[1765639639026,21.09207721,3116.3,3116.2,15.06043]
[1765639640626,15.09207721,3116.3,3116.2,19.33653]
[1765639640816,15.09207721,3116.3,3116.2,23.66703]
[1765639641514,15.09207721,3116.3,3116.2,19.33653]
[1765639641914,15.09207721,3116.3,3116.2,15.06043]
[1765639642225,15.09207721,3116.3,3116.2,20.22783]
[1765639645524,6.77817721,3116.3,3116.2,24.99523]
[1765639645727,11.89577721,3116.3,3116.2,24.99523]
[1765639648226,17.02797721,3116.3,3116.2,24.99523]
[1765639653734,11.89577721,3116.3,3116.2,24.99523]
[1765639653939,17.02797721,3116.3,3116.2,24.99523]
[1765639655144,17.02797721,3116.3,3116.2,10.09523]
[1765639655333,17.02797721,3116.3,3116.2,24.99323]
[1765639657139,17.02797721,3116.3,3116.2,20.22583]
[1765639659945,17.02797721,3116.3,3116.2,5.32783]
[1765639660147,17.02797721,3116.3,3116.2,20.22583]
[1765639660446,17.02797721,3116.3,3116.2,15.05843]
[1765639661045,17.02797721,3116.3,3116.2,19.92373]
[1765639661442,17.02797721,3116.3,3116.2,0.16043]
[1765639661645,17.02797721,3116.3,3116.2,15.05843]
[1765639662547,17.02797721,3116.3,3116.2,19.92373]
[1765639662940,11.89577721,3116.3,3116.2,24.79443]
[1765639663339,6.77817721,3116.3,3116.2,24.79443]
[1765639663949,11.89577721,3116.3,3116.2,24.79443]
[1765639667449,17.02797721,3116.3,3116.2,24.79443]
[1765639668148,11.89577721,3116.3,3116.2,24.79443]
[1765639669442,6.77817721,3116.3,3116.2,24.79443]
[1765639670356,11.89577721,3116.3,3116.2,24.79443]
[1765639671757,17.02797721,3116.3,3116.2,24.79443]
[1765639671961,17.02797721,3116.3,3116.2,25.99500561]
[1765639672751,17.02797721,3116.3,3116.2,25.99500611]
[1765639673760,6.77817721,3116.3,3116.2,25.99500611]
[1765639678567,11.22067721,3116.3,3116.2,25.99500611]
[1765639678858,6.77817721,3116.3,3116.2,30.40338222]
[1765639679865,6.77817721,3116.3,3116.2,29.20280611]
[1765639680759,6.77817721,3116.3,3116.2,30.40338222]
[1765639681566,6.77817721,3116.3,3116.2,29.20280611]
[1765639683169,11.22067721,3116.3,3116.2,29.20280611]
[1765639684163,6.77817721,3116.3,3116.2,30.40338222]
[1765639686760,6.77817721,3116.3,3116.2,28.00223]
[1765639686961,11.22067721,3116.3,3116.2,29.20280611]
[1765639688070,15.48917721,3116.3,3116.2,29.20280611]
[1765639688265,15.48917721,3116.3,3116.2,9.43410611]
[1765639688471,15.48917721,3116.3,3116.2,19.46480611]
[1765639688775,15.48917721,3116.3,3116.2,24.07450611]
[1765639689570,15.48917721,3116.3,3116.2,28.51700611]
[1765639690760,11.2633,3116.0,3115.9,0.00268679]
[1765639690966,11.2633,3115.5,3115.4,9.17855611]
[1765639691169,11.2633,3115.5,3115.4,24.07455611]
[1765639691474,11.2633,3115.5,3115.4,28.51705611]
[1765639691975,6.9948,3115.5,3115.4,28.51991648]
[1765639692871,11.2633,3115.5,3115.4,28.51991648]
[1765639693074,11.2633,3115.5,3115.4,27.31934037]
[1765639693376,11.2633,3115.5,3115.4,28.51991648]
[1765639693577,11.2633,3115.5,3115.4,7.98084037]
[1765639693766,11.2633,3115.5,3115.4,24.07741648]
[1765639693967,18.2017,3115.5,3115.4,24.07741648]
[1765639694271,18.2017,3115.5,3115.4,28.51991648]
[1765639695980,18.2017,3115.5,3115.4,25.31211648]
[1765639697878,18.2017,3115.5,3115.4,25.31311648]
[1765639698076,13.9332,3115.5,3115.4,25.31311648]
[1765639699474,13.9332,3115.5,3115.4,24.11254037]
[1765639699675,18.2017,3115.5,3115.4,25.31311648]
[1765639700781,9.4907,3115.5,3115.4,25.31311648]
[1765639700983,6.9384,3115.5,3115.4,25.31311648]
[1765639701787,18.0594,3115.5,3115.4,25.31311648]
[1765639704483,18.0594,3115.5,3115.4,24.11254037]
[1765639704687,18.0594,3115.5,3115.4,25.31311648]
[1765639705892,18.0594,3115.5,3115.4,20.87061648]
[1765639706083,8.7676,3115.2,3115.1,42.00057611]
[1765639706288,8.7676,3115.2,3115.1,56.89857611]
[1765639707082,8.7676,3115.2,3115.1,56.90230967]
[1765639707279,8.7676,3115.2,3115.1,57.06279967]
[1765639707792,18.2876,3115.5,3115.4,8.79578]
[1765639707990,18.2876,3115.5,3115.4,24.89435611]
[1765639708693,18.2876,3115.5,3115.4,24.89516531]
[1765639710697,18.2876,3115.5,3115.4,23.69378]
[1765639710997,18.2876,3115.5,3115.4,24.89516531]
[1765639711502,6.9384,3115.5,3115.4,24.89516531]
[1765639712290,18.2821,3115.5,3115.4,0.16048]
[1765639712499,18.2821,3115.5,3115.4,15.05848]
[1765639712688,18.2821,3115.5,3115.4,19.46678]
[1765639714802,18.2821,3115.5,3115.4,4.56878]
[1765639715099,18.2821,3115.5,3115.4,19.46678]
[1765639718004,18.2821,3115.5,3115.4,23.69378]
[1765639720801,18.2821,3115.5,3115.4,8.79578]
[1765639720999,18.2821,3115.5,3115.4,19.46678]
[1765639721897,18.2821,3115.5,3115.4,23.69378]
[1765639724107,18.2821,3115.5,3115.4,19.46678]
[1765639725609,18.2821,3115.5,3115.4,23.69378]
[1765639725907,13.8801,3115.5,3115.4,23.69378]
[1765639727807,3.56725963,3115.5,3115.4,27.35463073]
[1765639728615,7.5734,3115.7,3115.6,8.79576]
[1765639728906,7.5734,3115.7,3115.6,9.99714531]
[1765639729405,13.6509,3115.7,3115.6,9.99714531]
[1765639729809,9.2853,3115.7,3115.6,9.99714531]
[1765639732808,18.0529,3115.7,3115.6,4.56876]
[1765639733013,18.0529,3115.7,3115.6,15.05846]
[1765639733517,18.0529,3115.7,3115.6,19.46676]
[1765639735716,18.0529,3115.7,3115.6,23.69376]
[1765639735911,13.2412,3115.7,3115.6,23.69376]
[1765639736111,17.1815,3115.7,3115.6,23.69376]
[1765639739424,17.1815,3115.7,3115.6,8.79576]
[1765639739624,17.1815,3115.7,3115.6,23.69276]
[1765639740127,13.2412,3115.7,3115.6,23.69276]
[1765639740424,9.2853,3115.7,3115.6,23.69276]
[1765639741226,13.2412,3115.7,3115.6,23.69276]
[1765639742725,9.2853,3115.7,3115.6,23.69276]
[1765639743422,6.0775,3115.7,3115.6,23.69276]
[1765639744627,6.0775,3115.7,3115.6,24.8936092]
[1765639745121,6.0775,3115.7,3115.6,26.0944584]
[1765639745322,6.0775,3115.7,3115.6,29.48527285]
[1765639747822,5.74907,3115.7,3115.6,29.48527285]
[1765639748330,3.2078,3116.1,3116.0,8.27204]
[1765639748522,3.2078,3116.1,3116.0,24.3688892]
[1765639749128,7.9449,3116.1,3116.0,65.1688892]
[1765639749327,3.2078,3116.1,3116.0,65.1688892]
[1765639749630,9.3096,3116.1,3116.0,65.1688892]
[1765639750331,6.1018,3116.1,3116.0,70.29420323]
[1765639750736,6.1018,3116.1,3116.0,71.49505243]
[1765639751038,0.00887721,3116.3,3116.2,8.27203]
[1765639751239,6.73237721,3116.3,3116.2,8.27203]
[1765639751432,0.00887721,3116.3,3116.2,11.84328541]
[1765639752737,0.00887721,3116.3,3116.2,15.05108541]
[1765639753538,5.02368501,3116.4,3116.3,8.27203]
[1765639753739,5.02368501,3116.4,3116.3,25.5687284]
[1765639754041,0.2,3116.6,3116.5,9.12442]
[1765639754234,18.417,3116.6,3116.5,9.12442]
[1765639754432,18.417,3116.6,3116.5,12.50881301]
[1765639754633,19.00199787,3116.6,3116.5,12.50881301]
[1765639759539,26.89819787,3116.6,3116.5,11.65641301]
[1765639759837,26.89819787,3116.6,3116.5,16.2542692]
[1765639760036,26.89819787,3116.6,3116.5,20.2373692]
[1765639764743,26.89819787,3116.6,3116.5,16.2542692]
[1765639764947,26.89819787,3116.6,3116.5,1.3612692]
[1765639765142,26.89819787,3116.6,3116.5,16.2532692]
[1765639771649,26.89819787,3116.6,3116.5,15.05242]
[1765639773153,7.9899,3116.3,3116.2,3.2078]
[1765639773355,7.9899,3116.3,3116.2,18.0988]
[1765639773555,18.8205,3116.3,3116.2,18.0988]
[1765639774055,18.8205,3116.3,3116.2,19.2996492]
[1765639774355,18.8205,3116.3,3116.2,23.4009492]
[1765639774655,18.8205,3116.3,3116.2,20.3535792]
[1765639777046,18.8205,3116.3,3116.2,16.2522792]
[1765639777959,18.8205,3116.3,3116.2,0.16043]
[1765639778156,7.9899,3115.9,3115.8,4.4086492]
[1765639778357,7.9899,3115.9,3115.8,19.2996492]
[1765639778555,16.21,3115.9,3115.8,19.2996492]
[1765639778752,16.21,3115.9,3115.8,60.0996492]
[1765639778954,16.21,3115.9,3115.8,59.05925]
[1765639779162,16.21,3115.9,3115.8,15.05145]
[1765639781066,16.21,3115.9,3115.8,0.16045]
[1765639781266,16.21,3115.9,3115.8,11.97645]
[1765639783162,16.21,3115.9,3115.8,16.07775]
[1765639783660,16.21,3115.9,3115.8,11.97645]
[1765639787052,2.2305,3116.5,3115.8,19.64773584]
[1765639787259,2.2305,3116.5,3116.4,1.20123232]
[1765639787461,2.2305,3116.5,3116.4,16.09423232]
[1765639787759,7.2859,3116.5,3116.4,56.89423232]
[1765639788566,7.2859,3116.5,3116.4,57.05465232]
[1765639789464,11.2903,3116.5,3116.4,57.05465232]
[1765639790965,7.2859,3116.5,3116.4,57.05465232]
[1765639792566,15.2758,3116.5,3116.4,57.05465232]
[1765639793460,7.2859,3116.5,3116.4,58.25588464]
[1765639793764,4.00921595,3116.9,3116.8,0.1604]
[1765639793965,7.99471595,3116.9,3116.8,15.0524]
[1765639794169,19.95431595,3116.9,3116.8,16.25363232]
[1765639794565,19.95800738,3116.9,3116.8,16.25363232]
[1765639795366,19.95800738,3116.9,3116.8,16.60594326]
[1765639795957,19.95800738,3116.9,3116.8,16.6048102]
[1765639801268,19.95800738,3116.9,3116.8,15.40471094]
[1765639801477,19.95800738,3116.9,3116.8,1.7128102]
[1765639801674,21.15810664,3116.9,3116.8,0.51271094]
[1765639801974,8.5006,3116.6,3116.5,0.35090244]
[1765639802175,8.5006,3116.6,3116.5,14.89381595]
[1765639802474,17.1855,3116.6,3116.5,14.89381595]
[1765639802974,17.1855,3116.6,3116.5,15.24799926]
[1765639803277,17.1855,3116.6,3116.5,15.36699926]
[1765639803573,8.6849,3116.6,3116.5,15.64131926]
[1765639806276,13.045,3116.6,3116.5,15.64131926]
[1765639807172,17.1855,3116.6,3116.5,15.64131926]
[1765639807372,13.045,3116.6,3116.5,0.75231926]
[1765639807572,8.6849,3116.6,3116.5,16.84241852]
[1765639814274,8.6849,3116.6,3116.5,57.64241852]
[1765639816479,13.045,3116.6,3116.5,57.64241852]
[1765639816979,17.1855,3116.6,3116.5,57.64262608]
[1765639817180,13.045,3116.6,3116.5,57.64262608]
[1765639824088,8.6849,3116.6,3116.5,57.64262608]
[1765639824287,12.7309,3116.6,3116.5,57.64262608]
[1765639824688,8.6849,3116.6,3116.5,57.64262608]
[1765639825388,12.7309,3116.6,3116.5,57.64262608]
[1765639828894,16.7046,3116.6,3116.5,57.64262608]
[1765639830997,12.7309,3116.6,3116.5,57.64262608]
[1765639831297,16.7046,3116.6,3116.5,57.64262608]
[1765639831497,12.7309,3116.6,3116.5,57.64262608]
[1765639831797,8.6849,3116.6,3116.5,57.64262608]
[1765639833898,2.02809602,3116.6,3116.5,61.19031218]
[1765639834093,3.2078,3117.7,3117.4,0.16037]
[1765639834294,3.2078,3118.1,3117.4,16.24867682]
[1765639834800,3.2078,3118.1,3117.9,0.16035]
[1765639835006,3.2078,3118.1,3117.9,16.24865682]
[1765639835300,10.11931399,3118.0,3117.9,16.2511128]
[1765639841612,14.12551399,3118.0,3117.9,16.2511128]
[1765639841908,10.11931399,3118.0,3117.9,16.2511128]
[1765639845003,7.88881399,3118.0,3117.9,19.69782096]
[1765639845207,7.88881399,3118.0,3117.9,18.49751414]
[1765639845610,7.88881399,3118.0,3117.9,59.29751414]
[1765639846413,10.13951399,3118.0,3117.9,59.29751414]
[1765639846911,18.11941399,3118.0,3117.9,45.60982096]
[1765639847117,18.11941399,3118.0,3117.9,60.49382096]
[1765639847410,14.14571399,3118.0,3117.9,60.49382096]
[1765639848512,10.13951399,3118.0,3117.9,60.49382096]
[1765639849611,10.13951399,3118.0,3117.9,59.29351414]
[1765639851818,18.11941399,3118.0,3117.9,59.29351414]
[1765639852020,10.13951399,3118.0,3117.9,59.29351414]
[1765639853514,14.14571399,3118.0,3117.9,60.49265538]
[1765639854119,10.13951399,3118.0,3117.9,60.49265538]
[1765639854318,14.14571399,3118.0,3117.9,59.29351414]
[1765639854618,14.14571399,3118.0,3117.9,60.49265538]
[1765639856123,14.14571399,3118.0,3117.9,60.49269217]
[1765639857010,10.13951399,3118.0,3117.9,60.49269217]
[1765639861215,18.05361399,3118.0,3117.9,60.49269217]
[1765639861521,18.05361399,3118.0,3117.9,3.44670816]
[1765639861723,18.05361399,3118.0,3116.4,7.19506818]
[1765639861724,2.2713,3117.5,3117.2,3.2078]
[1765639861927,7.9141,3117.3,3117.2,1.84532212]
[1765639862125,7.9141,3117.3,3117.2,16.72932212]
[1765639862424,27.6974,3117.3,3117.2,15.04438]
[1765639862623,27.6974,3117.3,3117.2,2.51098154]
[1765639863530,27.6974,3117.3,3117.2,2.67136154]
[1765639870829,21.6974,3117.3,3117.2,10.60926154]
[1765639871628,17.7471,3117.3,3117.2,10.60926154]
[1765639871931,10.5755,3117.3,3117.2,10.60926154]
[1765639872438,14.5393,3117.3,3117.2,10.60926154]
[1765639876441,10.5755,3117.3,3117.2,10.60926154]
[1765639877443,14.5393,3117.3,3117.2,10.60926154]
[1765639883045,18.4896,3117.3,3117.2,10.60926154]
[1765639885047,18.4896,3117.3,3117.2,2.67136154]
[1765639885343,18.4896,3117.3,3117.2,11.08646154]
[1765639885548,18.4896,3117.3,3117.2,6.85346154]
[1765639887048,18.4896,3117.3,3117.2,2.67136154]
[1765639890644,8.7908,3116.7,3116.6,42.00001777]
[1765639890846,8.7908,3116.7,3116.6,56.88601777]
[1765639891647,8.7908,3116.7,3116.6,57.04961332]
[1765639893751,8.7908,3116.7,3116.6,55.84959555]
[1765639893951,8.7908,3116.7,3116.6,16.24961332]
[1765639894250,8.7908,3116.7,3116.6,20.43171332]
[1765639894454,8.7908,3116.7,3116.6,16.24961332]
[1765639894746,17.9317,3116.7,3116.6,16.24961332]
[1765639895153,17.9317,3116.7,3116.6,15.04959555]
[1765639898957,22.33951777,3116.7,3116.6,15.04959555]
[1765639902160,22.33951777,3116.7,3116.6,0.16359555]
[1765639902358,8.7908,3116.6,3116.5,0.35899926]
[1765639902752,20.3558,3116.6,3116.5,0.35899926]
[1765639903447,20.3558,3116.6,3116.5,0.36185311]
[1765639903662,20.3558,3116.6,3116.5,0.52227311]
[1765639906760,20.3558,3116.6,3116.5,0.37066412]
[1765639909962,20.3558,3116.6,3116.5,8.78576412]
[1765639910162,20.3558,3116.6,3116.5,4.55276412]
[1765639911062,20.3558,3116.6,3116.5,8.78576412]
[1765639912963,20.3558,3116.6,3116.5,4.55276412]
[1765639913366,20.3558,3116.6,3116.5,0.37066412]
[1765639918063,21.55645526,3116.6,3116.5,0.37066412]
[1765639919766,21.55645526,3116.6,3116.5,0.16327385]
[1765639920568,21.55645526,3116.6,3116.2,0.00481595]
[1765639920774,9.07255526,3116.2,3116.1,0.16044]
[1765639921666,9.07255526,3116.2,3116.1,1.67e-06]
[1765639921964,15.6369,3116.2,3116.1,9.71179693]
[1765639922673,11.6939,3116.2,3116.1,9.71179693]
[1765639923171,15.6369,3116.2,3116.1,9.71179693]
[1765639925764,11.6939,3116.2,3116.1,9.71179693]
[1765639925969,15.6369,3116.2,3116.1,9.71175698]
[1765639927169,11.6939,3116.2,3116.1,9.71175698]
[1765639927371,15.6369,3116.2,3116.1,9.71175698]
[1765639928274,19.5658,3116.2,3116.1,9.71175698]
[1765639928465,15.6369,3116.2,3116.1,9.71175698]
[1765639931170,19.5658,3116.2,3116.1,9.71175698]
[1765639939282,22.7736,3116.2,3116.1,9.71175698]
[1765639939786,18.8447,3116.2,3116.1,9.71175698]
[1765639942282,14.9017,3116.2,3116.1,9.71175698]
[1765639943889,14.9017,3116.2,3116.1,50.51175698]
[1765639944281,14.9017,3116.2,3116.1,51.71237229]
[1765639944589,14.9017,3116.2,3116.1,50.51175698]
[1765639947585,11.6939,3116.2,3116.1,51.71237229]
[1765639948088,11.6939,3116.2,3116.1,55.32357615]
[1765639948687,11.6939,3116.2,3116.1,54.12296084]
[1765639948893,11.6939,3116.2,3116.1,55.32357615]
[1765639950193,6.17087352,3116.2,3116.1,55.32357615]
[1765639950399,6.03859636,3116.2,3116.1,55.32357615]
[1765639950696,0.00481595,3116.5,3116.4,7.66832]
[1765639950897,0.00481595,3116.5,3116.4,24.95955062]
[1765639951100,0.00481595,3116.5,3116.4,28.4993025]
[1765639951593,0.00481595,3116.5,3116.4,69.2993025]
[1765639952093,7.32351595,3116.5,3116.4,69.2993025]
[1765639952292,3.73031595,3116.5,3116.4,69.2993025]
[1765639954692,7.32351595,3116.5,3116.4,69.2993025]
[1765639958797,0.00481595,3116.5,3116.4,69.2993025]
[1765639961905,0.00481595,3116.5,3116.4,69.29837]
[1765639963808,3.73031595,3116.5,3116.4,69.29837]
[1765639964005,3.73031595,3116.5,3116.4,65.75861812]
[1765639965014,0.00481595,3116.5,3116.4,65.75861812]
[1765639965406,0.00481595,3116.5,3116.4,69.3920356]
[1765639972319,3.73031595,3116.5,3116.4,69.3920356]
[1765639972621,0.00481595,3116.5,3116.4,69.3920356]
[1765639979926,0.00481595,3116.5,3116.4,69.39187146]
[1765639980523,7.4922,3116.6,3116.5,8.59962]
[1765639980524,7.32698692,3116.6,3116.5,8.59962]
[1765639980728,3.2078,3117.1,3117.0,9.5772]
[1765639980922,3.2078,3117.1,3117.0,26.86433398]
[1765639981521,3.2078,3117.1,3117.0,27.02472398]
[1765639981932,9.1545,3117.1,3117.0,27.02472398]
[1765639982633,5.9467,3117.1,3117.0,27.02472398]
[1765639985335,5.9467,3117.1,3117.0,25.82465699]
[1765639986191,9.7497,3117.1,3117.0,25.82465699]
[1765639986934,16.6482,3117.1,3117.0,0.16039]
[1765639987135,16.6482,3117.1,3117.0,15.04539]
[1765639987936,22.6482,3117.1,3117.0,15.04539]
[1765639992640,22.6482,3117.1,3117.0,9.59985427]
[1765639992837,8.826,3116.5,3116.4,42.00006699]
[1765639993035,8.826,3116.5,3116.4,56.88506699]
[1765639993436,10.5969,3116.6,3116.5,9.73762]
[1765639995446,10.5969,3116.6,3116.5,13.35018284]
[1765639997444,5.8129,3116.6,3116.5,13.35018284]
[1765639997848,5.8129,3116.6,3116.5,14.55015177]
[1765639998151,5.8129,3116.6,3116.5,17.75795177]
[1765640013263,9.7837,3116.6,3116.5,17.75795177]
[1765640013466,9.7837,3116.6,3116.5,16.55798284]
[1765640013660,13.9768,3116.6,3116.5,16.55798284]
[1765640013861,9.7837,3116.6,3116.5,16.55798284]
[1765640014464,5.8129,3116.6,3116.5,16.55798284]
[1765640017767,13.9768,3116.6,3116.5,16.55798284]
[1765640021173,9.7837,3116.6,3116.5,16.55798284]
[1765640022076,5.8129,3116.6,3116.5,16.55798284]
[1765640023773,9.7837,3116.6,3116.5,16.55798284]
[1765640026779,5.8129,3116.6,3116.5,16.55798284]
[1765640028775,13.9768,3116.6,3116.5,6.98078284]
[1765640028976,9.7837,3116.6,3116.5,17.51558284]
[1765640029368,5.8129,3116.6,3116.5,17.51558284]
[1765640030880,11.3717,3117.2,3117.1,8.33589]
[1765640031185,11.3717,3117.2,3117.1,24.41885893]
[1765640031677,20.628,3117.2,3117.1,24.41885893]
[1765640035075,20.628,3117.2,3117.1,24.41874636]
[1765640035486,17.4202,3117.2,3117.1,24.41874636]
[1765640035781,9.2563,3117.2,3117.1,24.41874636]
[1765640035979,16.7051,3117.2,3117.1,24.41874636]
[1765640036383,16.7051,3117.2,3117.1,15.04339]
[1765640037281,16.7051,3117.2,3117.1,18.68219]
[1765640039891,16.7051,3117.2,3117.1,19.88212202]
[1765640043589,16.7051,3117.2,3117.1,23.69732202]
[1765640044389,16.7051,3117.2,3117.1,19.88212202]
[1765640045282,16.7051,3117.2,3117.1,22.49739]
[1765640045283,13.0863,3117.2,3117.1,22.49739]
[1765640045488,16.7051,3117.2,3117.1,0.16039]
[1765640049000,19.9129,3117.2,3117.1,0.16039]
[1765640057015,7.4488,3117.1,3117.0,11.04239]
[1765640057619,7.4488,3117.1,3117.0,11.20278]
[1765640057820,8.64873202,3117.1,3117.0,11.20278]
[1765640066023,7.4488,3117.1,3117.0,11.20278]
[1765640066220,7.4488,3117.1,3117.0,14.70788]
[1765640070622,8.64873202,3117.1,3117.0,11.20278]
[1765640071220,8.64918279,3117.1,3117.0,11.20278]
[1765640073130,8.64918279,3117.1,3117.0,14.70788]
[1765640074730,8.64918279,3117.1,3117.0,11.20278]
[1765640079330,8.64918279,3117.1,3117.0,0.16039]
[1765640079635,9.84956558,3117.1,3117.0,0.16039]
[1765640079839,11.85698279,3117.1,3117.0,0.16039]
[1765640080328,24.73588279,3117.1,3117.0,0.16039]
[1765640080734,25.93626558,3117.1,3117.0,0.16039]
[1765640081934,25.93626558,3117.1,3116.1,1.67e-06]
[1765640081935,2.1053,3116.5,3116.4,0.16042]
[1765640082231,7.71386558,3116.5,3116.1,1.67e-06]
[1765640082436,8.46878279,3116.2,3116.1,0.16044167]
[1765640083142,22.48748279,3116.2,3116.1,0.16044167]
[1765640084339,7.2684,3115.8,3115.7,7.798]
[1765640084543,11.67658279,3115.8,3115.7,7.798]
[1765640085045,24.80418279,3115.8,3115.7,7.95846]
[1765640085239,24.80418279,3115.8,3115.7,7.96241851]
[1765640085437,24.8065404,3115.8,3115.7,7.96241851]
[1765640088744,23.60615761,3115.8,3115.7,14.97271851]
[1765640088944,16.33775761,3115.8,3115.7,17.37348409]
[1765640089333,16.33775761,3115.8,3115.7,16.1731013]
[1765640090448,19.90705761,3115.8,3115.7,14.97271851]
[1765640090643,19.90705761,3115.8,3115.7,16.1731013]
[1765640090843,16.33775761,3115.8,3115.7,16.1731013]
[1765640092751,23.60615761,3115.8,3115.7,0.16441851]
[1765640093852,24.8065404,3115.8,3115.7,0.16441851]
[1765640099963,24.80769427,3115.8,3115.7,0.16441851]
[1765640101556,23.60615761,3115.8,3115.7,0.16441851]
[1765640101751,24.80769427,3115.8,3115.7,0.16441851]
[1765640107059,24.80793087,3115.8,3115.7,0.16441851]
[1765640107967,6.5421,3114.8,3114.7,6.4651]
[1765640108164,10.95167326,3114.8,3114.7,0.51482912]
[1765640108871,6.5421,3114.2,3114.1,9.6729]
[1765640109071,9.7499,3114.2,3114.1,6.46898936]
[1765640109268,9.7499,3114.2,3114.1,47.62223864]
[1765640109573,20.3539,3114.2,3114.1,6.82223864]
[1765640109868,6.4621,3114.2,3114.1,6.82223864]
[1765640110067,24.8914,3114.2,3114.1,6.82223864]
[1765640110269,21.6036,3114.2,3114.1,6.82223864]
[1765640110665,21.6036,3114.2,3114.1,6.98277864]
[1765640111071,24.8914,3114.2,3114.1,6.98277864]
[1765640115776,24.8914,3114.2,3114.1,0.51767864]
[1765640116168,24.8914,3114.2,3114.1,3.84667864]
[1765640116669,24.8914,3114.2,3113.8,0.00481595]
[1765640116670,18.3493,3114.2,3113.8,0.00481595]
[1765640116865,7.74387326,3113.9,3113.8,0.00481595]
[1765640117273,20.51697326,3113.9,3113.8,0.00481595]
[1765640117574,19.3152,3113.9,3113.8,6.46991595]
[1765640117769,12.7731,3113.9,3113.8,6.82659741]
[1765640118275,16.0274,3113.9,3113.8,6.82659741]
[1765640118677,16.0274,3113.9,3113.8,6.98715741]
[1765640119477,19.3152,3113.9,3113.8,6.98715741]
[1765640119978,19.3152,3113.9,3113.8,3.85105741]
[1765640120873,19.3152,3113.9,3113.8,0.52205741]
[1765640121877,20.51697326,3113.9,3113.8,0.52205741]
[1765640122983,19.3152,3113.9,3113.8,3.85105741]
[1765640123179,19.3152,3113.9,3113.8,7.00095741]
[1765640123676,16.0274,3113.9,3113.8,7.00095741]
[1765640124081,18.9217,3113.9,3113.8,7.00095741]
[1765640126688,22.1295,3113.9,3113.8,7.00095741]
[1765640133892,22.1295,3113.9,3113.8,3.85105741]
[1765640134889,22.1295,3113.9,3113.8,0.52205741]
[1765640135896,22.1295,3113.9,3113.8,3.40965741]
[1765640137992,22.1295,3113.9,3113.8,0.52205741]
[1765640141897,2.9094,3113.5,3113.4,20.6072]
[1765640142102,21.7217,3113.9,3113.8,2.8876]
[1765640142306,2.9094,3113.6,3113.5,7.32737]
[1765640142597,5.7408,3113.6,3113.5,7.32737]
[1765640142802,13.6099,3113.6,3113.5,7.32737]
[1765640143001,13.6133749,3113.6,3113.5,7.32963632]
[1765640143203,13.6133749,3113.6,3113.5,7.66286036]
[1765640143402,7.8725749,3113.6,3113.5,8.86563971]
[1765640144005,0.0034749,3113.6,3113.5,8.86563971]
[1765640144903,2.9128749,3113.6,3113.5,8.86563971]
[1765640146392,2.9128749,3113.6,3113.5,7.66286036]
[1765640146603,2.9128749,3113.6,3113.5,8.86563971]
[1765640149909,2.9128749,3113.6,3113.5,7.66286036]
[1765640150110,5.7442749,3113.6,3113.5,8.86563971]
[1765640150410,2.9128749,3113.6,3113.5,8.86563971]
[1765640152307,5.7442749,3113.6,3113.5,8.86563971]
[1765640152516,5.7442749,3113.6,3113.5,0.49606036]
[1765640152812,5.7442749,3113.6,3113.5,3.38366036]
[1765640153216,5.7442749,3113.6,3113.5,6.21626036]
[1765640153412,5.7442749,3113.6,3113.5,3.38366036]
[1765640153907,5.7442749,3113.6,3113.5,6.21626036]
[1765640154104,5.7442749,3113.6,3113.5,0.49606036]
[1765640154412,0.0034749,3113.6,3113.5,8.56873971]
[1765640155616,2.9128749,3113.6,3113.5,8.56873971]
[1765640156016,0.0034749,3113.6,3113.5,8.56873971]